fUSD/lending_fUSD_20250804
["ID","MTS","AMOUNT","RATE_DAILY","PERIOD"]
[377215389,1754296244790,-266.962327,0.00046575,14]
[377215390,1754296244799,-266.962327,0.00046575,14]
[377215391,1754296244808,-266.962327,0.00046575,14]
[377215392,1754296244818,-151.0,0.00046575,14]
[377215393,1754296244827,-151.0,0.00046575,14]
[377215394,1754296244836,-151.0,0.00046575,14]
[377215395,1754296244845,-162.849685,0.00046575,14]
[377215396,1754296244854,-242.483583,0.00046575,14]
[377215397,1754296244863,-242.483583,0.00046575,14]
[377215398,1754296244873,-242.483583,0.00046575,14]
[377215399,1754296244882,-242.483583,0.00046575,14]
[377215400,1754296244892,-242.483583,0.00046575,14]
[377215401,1754296244901,-242.483583,0.00046575,14]
[377215402,1754296244912,-910.656476,0.00046575,14]
[377215403,1754296244921,-910.656476,0.00046575,14]
[377215404,1754296245059,-910.656476,0.00046575,14]
[377215405,1754296245069,-910.656476,0.00046575,14]
[377215406,1754296245078,-152.35433,0.00046575,14]
[377215407,1754296245088,-152.162938,0.00046575,14]
[377215408,1754296245097,-151.0,0.00046575,14]
[377215409,1754296245107,-151.0,0.00046575,14]
[377215410,1754296245116,-151.0,0.00046575,14]
[377215411,1754296245127,-151.0,0.00046575,14]
[377215412,1754296245136,-151.0,0.00046575,14]
[377215413,1754296245146,-151.0,0.00046575,14]
[377215414,1754296245155,-152.88476,0.00046575,14]
[377215415,1754296245164,-151.0,0.00046575,14]
[377215416,1754296245175,-151.0,0.00046575,14]
[377215417,1754296245185,-151.0,0.00046575,14]
[377215418,1754296245194,-151.0,0.00046575,14]
[377215419,1754296245203,-151.0,0.00046575,14]
[377215420,1754296245212,-329.689088,0.00046575,14]
[377215421,1754296245224,-329.689088,0.00046575,14]
[377215422,1754296245234,-221.489145,0.00046575,14]
[377215423,1754296245243,-221.489145,0.00046575,14]
[377215424,1754296245252,-151.0,0.00046575,14]
[377215425,1754296245262,-151.0,0.00046575,14]
[377215426,1754296245272,-334.12825478,0.00046575,120]
[377215427,1754296245282,-400.0,0.00046575,120]
[377215428,1754296245291,-400.0,0.00046575,120]
[377215429,1754296245302,-400.0,0.00046575,120]
[377215430,1754296245311,-151.0,0.00046575,14]
[377215431,1754296245321,-151.0,0.00046575,14]
[377215432,1754296245330,-151.0,0.00046575,14]
[377215433,1754296245340,-400.0,0.00046575,120]
[377215434,1754296245350,-151.0,0.00046575,14]
[377215435,1754296245359,-151.0,0.00046575,14]
[377215436,1754296245368,-151.0,0.00046575,14]
[377215437,1754296245379,-153.233418,0.00046575,14]
[377215438,1754296245389,-151.0,0.00046575,14]
[377215439,1754296245399,-400.0,0.00046575,120]
[377215440,1754296245408,-156.609953,0.00046575,120]
[377215441,1754296245418,-400.0,0.00046575,120]
[377215442,1754296245427,-400.0,0.00046575,120]
[377215443,1754296245437,-400.0,0.00046575,120]
[377215444,1754296245446,-151.0,0.00046575,14]
[377215445,1754296245457,-151.0,0.00046575,14]
[377215446,1754296245466,-151.0,0.00046575,14]
[377215447,1754296245479,-151.0,0.00046575,14]
[377215448,1754296245489,-401.61316647,0.00046575,120]
[377215449,1754296245498,-151.0,0.00046575,14]
[377215450,1754296245508,-151.0,0.00046575,14]
[377215451,1754296245521,-639.12,0.00046575,120]
[377215452,1754296245530,-400.0,0.00046575,120]
[377215453,1754296245540,-400.0,0.00046575,120]
[377215454,1754296245549,-151.0,0.00046575,14]
[377215455,1754296245559,-151.0,0.00046575,14]
[377215456,1754296245569,-1876.217017,0.00046575,120]
[377215457,1754296245579,-1616.379666,0.00046575,120]
[377215458,1754296245589,-1802.736435,0.00046575,120]
[377215459,1754296245599,-576.49,0.00046575,120]
[377215460,1754296245608,-196.893353,0.00046575,14]
[377215461,1754296245617,-196.893353,0.00046575,14]
[377215462,1754296245626,-156.985334,0.00046575,120]
[377215463,1754296245635,-196.893353,0.00046575,14]
[377215464,1754296245645,-196.893353,0.00046575,14]
[377215465,1754296245654,-400.0,0.00046575,120]
[377215466,1754296245663,-236.537978,0.00046575,14]
[377215467,1754296245673,-400.0,0.00046575,120]
[377215468,1754296245682,-402.08556095,0.00046575,120]
[377215469,1754296245691,-918.92,0.00046575,120]
[377215470,1754296245701,-400.0,0.00046575,120]
[377215471,1754296245710,-400.0,0.00046575,120]
[377215472,1754296245719,-236.537978,0.00046575,14]
[377215473,1754296245731,-500.0,0.00046575,120]
[377215474,1754296245741,-400.0,0.00046575,120]
[377215475,1754296245750,-400.0,0.00046575,120]
[377215476,1754296245760,-400.0,0.00046575,120]
[377215477,1754296245770,-400.0,0.00046575,120]
[377215478,1754296245779,-400.0,0.00046575,120]
[377215479,1754296245788,-400.0,0.00046575,120]
[377215480,1754296245797,-1463.09,0.00046575,120]
[377215482,1754296245807,-301.05795022,0.00046575,120]
[377215484,1754296245816,-400.0,0.00046575,120]
[377215486,1754296245826,-400.0,0.00046575,120]
[377215488,1754296245834,-540.05,0.00046575,120]
[377215490,1754296245843,-151.0,0.00046575,14]
[377215491,1754296245853,-400.0,0.00046575,120]
[377215493,1754296245862,-151.0,0.00046575,14]
[377215495,1754296245871,-151.0,0.00046575,14]
[377215497,1754296245880,-400.0,0.00046575,16]
[377215499,1754296245890,-400.0,0.00046575,120]
[377215501,1754296245900,-402.44258776,0.00046575,120]
[377215503,1754296245910,-400.0,0.00046575,120]
[377215506,1754296245920,-916.44,0.00046575,120]
[377215508,1754296245929,-400.0,0.00046575,120]
[377215510,1754296245939,-400.0,0.00046575,120]
[377215513,1754296245949,-400.0,0.00046575,120]
[377215515,1754296245959,-403.03408759,0.00046575,120]
[377215517,1754296245969,-400.0,0.00046575,120]
[377215518,1754296245979,-400.0,0.00046575,120]
[377215521,1754296245989,-400.0,0.00046575,120]
[377215523,1754296245999,-401.18364362,0.00046575,120]
[377215525,1754296246009,-504.02318018,0.00046575,120]
[377215527,1754296246019,-1142.67,0.00046575,120]
[377215529,1754296246028,-400.0,0.00046575,120]
[377215531,1754296246038,-1642.13,0.00046575,120]
[377215533,1754296246048,-400.0,0.00046575,120]
[377215535,1754296246057,-892.32,0.00046575,120]
[377215537,1754296246066,-400.0,0.00046575,120]
[377215538,1754296246075,-263.58208248,0.00046575,120]
[377215539,1754296246085,-400.0,0.00046575,120]
[377215540,1754296246094,-400.0,0.00046575,120]
[377215541,1754296246104,-490.00346897,0.00046575,120]
[377215542,1754296246113,-886.76,0.00046575,120]
[377215543,1754296246122,-400.0,0.00046575,120]
[377215544,1754296246131,-400.0,0.00046575,120]
[377215545,1754296246141,-400.0,0.00046575,120]
[377215546,1754296246150,-400.0,0.00046575,120]
[377215547,1754296246160,-400.0,0.00046575,120]
[377215548,1754296246169,-400.0,0.00046575,120]
[377215549,1754296246179,-520.13,0.00046575,120]
[377215550,1754296246188,-151.0,0.00046575,14]
[377215551,1754296246198,-400.0,0.00046575,120]
[377215552,1754296246207,-400.0,0.00046575,120]
[377215553,1754296246217,-876.39,0.00046575,120]
[377215554,1754296246230,-1073.76,0.00046575,120]
[377215555,1754296246239,-400.0,0.00046575,120]
[377215556,1754296246249,-400.0,0.00046575,120]
[377215557,1754296246258,-400.0,0.00046575,120]
[377215558,1754296246268,-468.92,0.00046575,120]
[377215559,1754296246277,-400.0,0.00046575,120]
[377215560,1754296246286,-400.0,0.00046575,120]
[377215561,1754296246296,-537.28,0.00046575,120]
[377215562,1754296246305,-400.0,0.00046575,120]
[377215563,1754296246315,-597.88,0.00046575,120]
[377215564,1754296246324,-428.16972343,0.00046575,120]
[377215565,1754296246333,-400.0,0.00046575,120]
[377215566,1754296246342,-1416.36,0.00046575,120]
[377215567,1754296246352,-400.0,0.00046575,120]
[377215568,1754296246362,-532.00904616,0.00046575,120]
[377215569,1754296246371,-1654.07,0.00046575,120]
[377215570,1754296246381,-356.28271266,0.00046575,120]
[377215571,1754296246390,-400.0,0.00046575,120]
[377215572,1754296246400,-400.0,0.00046575,120]
[377215573,1754296246410,-966.22,0.00046575,120]
[377215574,1754296246419,-400.0,0.00046575,120]
[377215575,1754296246429,-400.0,0.00046575,120]
[377215576,1754296246438,-2154.65,0.00046575,120]
[377215577,1754296246448,-516.0,0.00046575,120]
[377215578,1754296246457,-697.26,0.00046575,120]
[377215579,1754296246467,-2545.39,0.00046575,120]
[377215580,1754296246478,-916.43,0.00046575,120]
[377215581,1754296246487,-1962.62,0.00046575,120]
[377215582,1754296246497,-540.78,0.00046575,120]
[377215583,1754296246507,-400.0,0.00046575,120]
[377215584,1754296246520,-803.67,0.00046575,120]
[377215585,1754296246530,-151.0,0.00046575,14]
[377215586,1754296246539,-151.0,0.00046575,14]
[377215587,1754296246549,-873.59,0.00046575,120]
[377215588,1754296246558,-649.97,0.00046575,120]
[377215589,1754296246568,-400.0,0.00046575,120]
[377215590,1754296246579,-992.99,0.00046575,120]
[377215591,1754296246589,-400.0,0.00046575,120]
[377215592,1754296246599,-400.0,0.00046575,120]
[377215593,1754296246609,-400.0,0.00046575,120]
[377215594,1754296246618,-321.5412121,0.00046575,120]
[377215595,1754296246628,-733.19,0.00046575,120]
[377215596,1754296246638,-1218.86,0.00046575,120]
[377215597,1754296246647,-400.0,0.00046575,120]
[377215598,1754296246657,-589.39,0.00046575,120]
[377215599,1754296246667,-622.61,0.00046575,120]
[377215600,1754296246676,-400.0,0.00046575,120]
[377215601,1754296246686,-400.47528757,0.00046575,120]
[377215602,1754296246696,-400.0,0.00046575,120]
[377215603,1754296246706,-429.41,0.00046575,120]
[377215604,1754296246716,-1250.32,0.00046575,120]
[377215605,1754296246726,-1577.64,0.00046575,120]
[377215606,1754296246736,-419.43,0.00046575,120]
[377215607,1754296246745,-1792.38,0.00046575,120]
[377215608,1754296246754,-400.0,0.00046575,120]
[377215609,1754296246763,-400.0,0.00046575,120]
[377215610,1754296246773,-900.94,0.00046575,120]
[377215611,1754296246783,-400.0,0.00046575,120]
[377215612,1754296246793,-1159.72,0.00046575,120]
[377215613,1754296246802,-400.0,0.00046575,120]
[377215614,1754296246812,-151.0,0.00046575,14]
[377215615,1754296246822,-186.489077,0.00046575,14]
[377215616,1754296246831,-400.0,0.00046575,120]
[377215617,1754296246841,-400.0,0.00046575,120]
[377215618,1754296246851,-1381.82,0.00046575,120]
[377215619,1754296246860,-400.0,0.00046575,120]
[377215620,1754296246869,-1863.0,0.00046575,120]
[377215621,1754296246879,-402.42512924,0.00046575,120]
[377215622,1754296246889,-736.7,0.00046575,120]
[377215623,1754296246898,-1143.95,0.00046575,120]
[377215624,1754296246908,-462.36782567,0.00046575,120]
[377215625,1754296246918,-524.84,0.00046575,120]
[377215626,1754296246928,-400.0,0.00046575,120]
[377215627,1754296246937,-938.18,0.00046575,120]
[377215628,1754296246947,-400.0,0.00046575,120]
[377215629,1754296246956,-400.0,0.00046575,120]
[377215630,1754296246966,-500.0,0.00046575,30]
[377215631,1754296246976,-500.0,0.00046575,30]
[377215632,1754296246986,-500.0,0.00046575,30]
[377215633,1754296246996,-500.0,0.00046575,30]
[377215634,1754296247006,-500.0,0.00046575,30]
[377215635,1754296247016,-512.26022641,0.00046575,30]
[377215636,1754296247026,-487.34,0.00046575,120]
[377215637,1754296247036,-153.292689,0.00046575,14]
[377215638,1754296247045,-1190.15,0.00046575,120]
[377215639,1754296247055,-400.0,0.00046575,120]
[377215640,1754296247065,-953.7,0.00046575,120]
[377215641,1754296247075,-800.36,0.00046575,120]
[377215642,1754296247084,-400.0,0.00046575,120]
[377215643,1754296247093,-608.72,0.00046575,120]
[377215644,1754296247103,-400.0,0.00046575,120]
[377215645,1754296247112,-400.0,0.00046575,120]
[377215646,1754296247129,-400.0,0.00046575,120]
[377215647,1754296247151,-400.0,0.00046575,120]
[377215648,1754296247164,-400.0,0.00046575,120]
[377215649,1754296247174,-1393.34,0.00046575,120]
[377215650,1754296247183,-864.08,0.00046575,120]
[377215651,1754296247193,-708.44,0.00046575,120]
[377215652,1754296247202,-400.0,0.00046575,120]
[377215653,1754296247211,-636.92,0.00046575,120]
[377215654,1754296247222,-400.0,0.00046575,120]
[377215655,1754296247232,-400.0,0.00046575,120]
[377215656,1754296247242,-936.15,0.00046575,120]
[377215657,1754296247251,-400.0,0.00046575,120]
[377215658,1754296247261,-400.0,0.00046575,120]
[377215659,1754296247271,-1391.9,0.00046575,120]
[377215660,1754296247281,-400.0,0.00046575,120]
[377215661,1754296247290,-1857.26,0.00046575,120]
[377215662,1754296247300,-400.0,0.00046575,120]
[377215663,1754296247309,-400.0,0.00046575,120]
[377215664,1754296247318,-400.0,0.00046575,120]
[377215665,1754296247327,-704.89,0.00046575,120]
[377215666,1754296247338,-400.0,0.00046575,120]
[377215667,1754296247347,-400.0,0.00046575,120]
[377215668,1754296247357,-627.09,0.00046575,120]
[377215669,1754296247366,-400.0,0.00046575,120]
[377215670,1754296247375,-1258.79,0.00046575,120]
[377215671,1754296247384,-400.0,0.00046575,120]
[377215672,1754296247393,-400.0,0.00046575,120]
[377215673,1754296247401,-400.0,0.00046575,120]
[377215674,1754296247410,-400.0,0.00046575,120]
[377215675,1754296247419,-1227.94,0.00046575,120]
[377215676,1754296247429,-400.0,0.00046575,120]
[377215677,1754296247438,-400.0,0.00046575,120]
[377215678,1754296247448,-400.0,0.00046575,120]
[377215679,1754296247458,-652.52,0.00046575,120]
[377215680,1754296247468,-400.0,0.00046575,120]
[377215681,1754296247479,-527.16,0.00046575,120]
[377215682,1754296247489,-959.06,0.00046575,120]
[377215683,1754296247499,-956.59,0.00046575,120]
[377215684,1754296247508,-400.0,0.00046575,120]
[377215685,1754296247521,-400.0,0.00046575,120]
[377215686,1754296247530,-851.13,0.00046575,120]
[377215687,1754296247540,-400.0,0.00046575,120]
[377215688,1754296247549,-558.91,0.00046575,120]
[377215689,1754296247560,-1051.32,0.00046575,120]
[377215690,1754296247570,-1582.09,0.00046575,120]
[377215691,1754296247579,-717.16,0.00046575,120]
[377215692,1754296247589,-1351.03,0.00046575,120]
[377215693,1754296247600,-402.65185867,0.00046575,120]
[377215694,1754296247610,-278.11103653,0.00046575,120]
[377215695,1754296247619,-400.0,0.00046575,120]
[377215696,1754296247629,-628.15,0.00046575,120]
[377215697,1754296247638,-1200.49,0.00046575,120]
[377215698,1754296247648,-400.0,0.00046575,120]
[377215699,1754296247657,-481.49,0.00046575,120]
[377215700,1754296247667,-440.15,0.00046575,120]
[377215701,1754296247677,-400.0,0.00046575,120]
[377215702,1754296247687,-432.75,0.00046575,120]
[377215703,1754296247696,-612.43,0.00046575,60]
[377215704,1754296247706,-400.0,0.00046575,120]
[377215705,1754296247716,-624.44,0.00046575,120]
[377215706,1754296247726,-400.0,0.00046575,120]
[377215707,1754296247736,-400.0,0.00046575,120]
[377215708,1754296247746,-673.18,0.00046575,120]
[377215709,1754296247754,-400.0,0.00046575,120]
[377215710,1754296247763,-400.0,0.00046575,120]
[377215711,1754296247772,-1354.09,0.00046575,120]
[377215712,1754296247782,-419.04,0.00046575,120]
[377215713,1754296247791,-400.0,0.00046575,120]
[377215714,1754296247801,-400.0,0.00046575,120]
[377215715,1754296247809,-151.0,0.00046575,14]
[377215716,1754296247818,-627.21,0.00046575,120]
[377215717,1754296247826,-151.0,0.00046575,14]
[377215718,1754296247835,-151.0,0.00046575,14]
[377215719,1754296247844,-151.0,0.00046575,14]
[377215720,1754296247854,-400.0,0.00046575,120]
[377215721,1754296247863,-151.0,0.00046575,14]
[377215722,1754296247873,-400.0,0.00046575,7]
[377215723,1754296247883,-160.220119,0.00046575,14]
[377215724,1754296247893,-602.74,0.00046575,120]
[377215725,1754296248308,-400.0,0.00046575,120]
[377215726,1754296248319,-404.58946311,0.00046575,120]
[377215727,1754296248330,-151.0,0.00046575,14]
[377215728,1754296248350,-151.0,0.00046575,14]
[377215729,1754296248366,-508.66,0.00046575,120]
[377215730,1754296248376,-400.0,0.00046575,120]
[377215731,1754296248387,-400.0,0.00046575,120]
[377215732,1754296248397,-400.0,0.00046575,120]
[377215733,1754296248407,-400.0,0.00046575,120]
[377215734,1754296248417,-400.0,0.00046575,120]
[377215735,1754296248426,-2188.86,0.00046575,120]
[377215736,1754296248436,-502.43043941,0.00046575,120]
[377215737,1754296248446,-400.0,0.00046575,120]
[377215738,1754296248456,-1433.56,0.00046575,120]
[377215739,1754296248466,-556.41,0.00046575,120]
[377215740,1754296248476,-400.0,0.00046575,120]
[377215741,1754296248486,-400.0,0.00046575,120]
[377215742,1754296248496,-400.0,0.00046575,120]
[377215743,1754296248506,-885.78,0.00046575,120]
[377215744,1754296248518,-486.23,0.00046575,120]
[377215745,1754296248528,-937.76,0.00046575,120]
[377215746,1754296248540,-400.0,0.00046575,120]
[377215747,1754296248550,-1027.8,0.00046575,120]
[377215748,1754296248563,-400.0,0.00046575,120]
[377215749,1754296248573,-400.0,0.00046575,120]
[377215750,1754296248585,-400.0,0.00046575,120]
[377215751,1754296248597,-400.0,0.00046575,120]
[377215752,1754296248607,-400.0,0.00046575,120]
[377215753,1754296248620,-400.0,0.00046575,120]
[377215754,1754296248631,-595.16,0.00046575,120]
[377215755,1754296248640,-646.29,0.00046575,120]
[377215756,1754296248650,-2210.41,0.00046575,120]
[377215757,1754296248660,-604.7,0.00046575,120]
[377215758,1754296248670,-400.0,0.00046575,120]
[377215759,1754296248679,-400.0,0.00046575,120]
[377215760,1754296248690,-400.0,0.00046575,120]
[377215761,1754296248699,-865.57,0.00046575,120]
[377215762,1754296248709,-1083.27,0.00046575,120]
[377215763,1754296248719,-400.0,0.00046575,120]
[377215764,1754296248730,-400.0,0.00046575,120]
[377215765,1754296248741,-400.0,0.00046575,120]
[377215766,1754296248750,-400.0,0.00046575,120]
[377215767,1754296248759,-1009.64,0.00046575,120]
[377215768,1754296248769,-730.78,0.00046575,120]
[377215769,1754296248779,-400.0,0.00046575,120]
[377215770,1754296248789,-400.0,0.00046575,120]
[377215771,1754296248798,-1163.19,0.00046575,120]
[377215772,1754296248808,-151.0,0.00046575,14]
[377215773,1754296248818,-151.0,0.00046575,14]
[377215774,1754296248828,-151.0,0.00046575,14]
[377215775,1754296248837,-400.0,0.00046575,120]
[377215776,1754296248847,-469.15,0.00046575,120]
[377215777,1754296248857,-400.0,0.00046575,120]
[377215778,1754296248866,-792.13,0.00046575,120]
[377215779,1754296248876,-400.0,0.00046575,120]
[377215780,1754296248886,-871.35,0.00046575,120]
[377215781,1754296248895,-771.42,0.00046575,120]
[377215782,1754296248905,-400.0,0.00046575,120]
[377215783,1754296248914,-1398.86,0.00046575,120]
[377215784,1754296248924,-528.84,0.00046575,120]
[377215785,1754296248933,-400.0,0.00046575,120]
[377215786,1754296248942,-400.0,0.00046575,120]
[377215787,1754296248952,-400.0,0.00046575,120]
[377215788,1754296248962,-800.31,0.00046575,120]
[377215789,1754296248972,-400.0,0.00046575,120]
[377215790,1754296248982,-460.4,0.00046575,120]
[377215791,1754296248992,-940.53,0.00046575,120]
[377215792,1754296249002,-400.0,0.00046575,120]
[377215793,1754296249011,-914.27,0.00046575,120]
[377215794,1754296249021,-400.0,0.00046575,120]
[377215795,1754296249030,-400.0,0.00046575,120]
[377215796,1754296249040,-1719.89,0.00046575,120]
[377215797,1754296249050,-400.0,0.00046575,120]
[377215798,1754296249060,-905.27,0.00046575,120]
[377215799,1754296249070,-400.0,0.00046575,120]
[377215800,1754296249080,-400.0,0.00046575,120]
[377215801,1754296249089,-605.94,0.00046575,120]
[377215802,1754296249099,-1492.43,0.00046575,120]
[377215803,1754296249109,-400.0,0.00046575,120]
[377215804,1754296249119,-651.67,0.00046575,120]
[377215805,1754296249129,-763.3,0.00046575,120]
[377215806,1754296249139,-557.25,0.00046575,120]
[377215807,1754296249148,-400.0,0.00046575,120]
[377215808,1754296249158,-600.89,0.00046575,120]
[377215809,1754296249168,-731.51,0.00046575,120]
[377215810,1754296249178,-400.0,0.00046575,120]
[377215811,1754296249189,-400.0,0.00046575,120]
[377215812,1754296249199,-400.4,0.00046575,120]
[377215813,1754296249212,-760.42,0.00046575,60]
[377215814,1754296249226,-401.19190915,0.00046575,120]
[377215815,1754296249235,-400.0,0.00046575,120]
[377215816,1754296249245,-1104.06,0.00046575,120]
[377215817,1754296249255,-404.88567389,0.00046575,120]
[377215818,1754296249265,-178.822416,0.00046575,14]
[377215819,1754296249275,-178.822416,0.00046575,14]
[377215820,1754296249285,-1517.31,0.00046575,120]
[377215821,1754296249294,-1026.22,0.00046575,120]
[377215822,1754296249304,-400.0,0.00046575,120]
[377215823,1754296249313,-400.0,0.00046575,120]
[377215824,1754296249322,-400.0,0.00046575,120]
[377215825,1754296249332,-178.822416,0.00046575,14]
[377215826,1754296249342,-178.822416,0.00046575,14]
[377215827,1754296249351,-400.0,0.00046575,120]
[377215828,1754296249361,-400.0,0.00046575,120]
[377215829,1754296249370,-1029.18,0.00046575,120]
[377215830,1754296249379,-482.40863723,0.00046575,120]
[377215831,1754296249389,-400.0,0.00046575,120]
[377215832,1754296249400,-659.15,0.00046575,120]
[377215833,1754296249409,-404.52176412,0.00046575,120]
[377215834,1754296249419,-400.0,0.00046575,120]
[377215835,1754296249428,-400.0,0.00046575,120]
[377215836,1754296249437,-682.46,0.00046575,120]
[377215837,1754296249447,-1258.62,0.00046575,120]
[377215838,1754296249456,-1599.79,0.00046575,120]
[377215839,1754296249466,-400.0,0.00046575,120]
[377215840,1754296249476,-400.0,0.00046575,120]
[377215841,1754296249486,-280.358918,0.00046575,14]
[377215842,1754296249495,-400.0,0.00046575,120]
[377215843,1754296249505,-151.0,0.00046575,14]
[377215844,1754296249517,-605.75,0.00046575,120]
[377215845,1754296249526,-151.0,0.00046575,14]
[377215846,1754296249536,-400.0,0.00046575,120]
[377215847,1754296249545,-151.0,0.00046575,14]
[377215848,1754296249557,-400.0,0.00046575,120]
[377215849,1754296249566,-400.0,0.00046575,120]
[377215850,1754296249576,-1149.4,0.00046575,120]
[377215851,1754296249585,-476.67,0.00046575,120]
[377215852,1754296249595,-534.54,0.00046575,120]
[377215853,1754296249605,-624.48,0.00046575,120]
[377215854,1754296249614,-5439.75,0.00046575,118]
[377215855,1754296249623,-400.0,0.00046575,120]
[377215856,1754296249633,-1382.12,0.00046575,120]
[377215857,1754296249642,-151.0,0.00046575,14]
[377215858,1754296249652,-151.788493,0.00046575,14]
[377215859,1754296249661,-1119.69,0.00046575,120]
[377215860,1754296249670,-624.64,0.00046575,120]
[377215861,1754296249680,-400.0,0.00046575,120]
[377215862,1754296249690,-398.25546338,0.00046575,120]
[377215863,1754296249699,-1021.44,0.00046575,120]
[377215864,1754296249708,-498.27,0.00046575,120]
[377215865,1754296249718,-400.0,0.00046575,120]
[377215866,1754296249729,-400.0,0.00046575,120]
[377215867,1754296249739,-276.09742831,0.00046575,120]
[377215868,1754296249748,-400.0,0.00046575,120]
[377215869,1754296249758,-955.38,0.00046575,120]
[377215870,1754296249768,-504.74,0.00046575,120]
[377215871,1754296249777,-400.0,0.00046575,120]
[377215872,1754296249787,-400.0,0.00046575,120]
[377215873,1754296249796,-400.0,0.00046575,120]
[377215874,1754296249806,-1016.51,0.00046575,120]
[377215875,1754296249815,-170.0,0.00046575,120]
[377215876,1754296249825,-209.52185211,0.00046575,2]
[377215877,1754296249834,-288.26906721,0.00046575,120]
[377215878,1754296249844,-400.0,0.00046575,120]
[377215879,1754296249853,-400.0,0.00046575,120]
[377215880,1754296249863,-400.0,0.00046575,120]
[377215881,1754296249872,-400.0,0.00046575,120]
[377215882,1754296249882,-154.89547,0.00046575,14]
[377215883,1754296249892,-235.918918,0.00046575,14]
[377215884,1754296249901,-235.918918,0.00046575,14]
[377215885,1754296249910,-400.0,0.00046575,120]
[377215886,1754296249920,-400.0,0.00046575,120]
[377215887,1754296249930,-704.36,0.00046575,120]
[377215888,1754296249940,-1651.4,0.00046575,120]
[377215889,1754296249949,-400.0,0.00046575,120]
[377215890,1754296249958,-400.0,0.00046575,120]
[377215891,1754296249967,-400.0,0.00046575,120]
[377215892,1754296249978,-400.0,0.00046575,120]
[377215893,1754296249988,-235.918918,0.00046575,14]
[377215894,1754296249998,-943.42,0.00046575,120]
[377215895,1754296250009,-235.918918,0.00046575,14]
[377215896,1754296250018,-401.94087574,0.00046575,120]
[377215897,1754296250028,-400.0,0.00046575,120]
[377215898,1754296250037,-1594.58,0.00046575,120]
[377215899,1754296250047,-400.0,0.00046575,120]
[377215900,1754296250056,-401.0728275,0.00046575,120]
[377215901,1754296250067,-400.0,0.00046575,120]
[377215902,1754296250076,-795.28,0.00046575,120]
[377215903,1754296250086,-1049.11,0.00046575,120]
[377215904,1754296250095,-860.73,0.00046575,120]
[377215905,1754296250105,-485.8,0.00046575,120]
[377215906,1754296250114,-400.0,0.00046575,120]
[377215907,1754296250124,-1106.28,0.00046575,120]
[377215908,1754296250133,-400.0,0.00046575,120]
[377215909,1754296250143,-827.63,0.00046575,120]
[377215910,1754296250153,-217.38351612,0.00046575,120]
[377215911,1754296250163,-400.0,0.00046575,120]
[377215912,1754296250172,-400.0,0.00046575,120]
[377215913,1754296250181,-400.0,0.00046575,120]
[377215914,1754296250191,-482.61,0.00046575,120]
[377215915,1754296250200,-1600.66,0.00046575,120]
[377215916,1754296250209,-1061.22,0.00046575,120]
[377215917,1754296250219,-1270.09,0.00046575,120]